[Event "*** Titled Tuesday Blitz"]
[Site "Chess.com"]
[Date "2021.04.27"]
[Round "10"]
[White "Kozok"]
[Black "queen_iryna"]
[Result "1-0"]
[WhiteElo "2524"]
[BlackElo "2393"]
[TimeControl "180+1"]
[EndTime "11:54:16 PDT"]
[Termination "Kozok won by resignation"]

1. e4 {[%clk 0:03:00.9]} 1... d6 {[%clk 0:03:00.1]} 2. d4 {[%clk 0:02:58.7]}
2... Nf6 {[%clk 0:03:00.7]} 3. Nc3 {[%clk 0:02:58.1]} 3... e5 {[%clk 0:03:00.6]}
4. Nf3 {[%clk 0:02:57]} 4... Nbd7 {[%clk 0:03:00.5]} 5. Rg1 {[%clk 0:02:56.2]}
5... g6 {[%clk 0:02:54.6]} 6. g4 {[%clk 0:02:55.7]} 6... Bg7 {[%clk 0:02:53.5]}
7. g5 {[%clk 0:02:51.8]} 7... Nh5 {[%clk 0:02:53.5]} 8. Be3 {[%clk 0:02:51.8]}
8... O-O {[%clk 0:02:52.1]} 9. Qd2 {[%clk 0:02:51]} 9... c6 {[%clk 0:02:52.3]}
10. O-O-O {[%clk 0:02:50]} 10... Qa5 {[%clk 0:02:51.9]} 11. dxe5 {[%clk
0:02:46.2]} 11... dxe5 {[%clk 0:02:41]} 12. Qd6 {[%clk 0:02:46.4]} 12... Re8
{[%clk 0:02:00]} 13. Bc4 {[%clk 0:02:30.6]} 13... Bf8 {[%clk 0:01:59.6]} 14. Qd2
{[%clk 0:02:20.4]} 14... b5 {[%clk 0:01:59.1]} 15. Bb3 {[%clk 0:02:16]} 15... b4
{[%clk 0:01:57]} 16. Ne2 {[%clk 0:02:07.7]} 16... Nc5 {[%clk 0:01:52.9]} 17.
Bxc5 {[%clk 0:02:02.1]} 17... Bxc5 {[%clk 0:01:51.3]} 18. Ng3 {[%clk 0:01:38.8]}
18... Nxg3 {[%clk 0:01:23.9]} 19. hxg3 {[%clk 0:01:38.6]} 19... Be6 {[%clk
0:01:24.5]} 20. Kb1 {[%clk 0:01:32.4]} 20... Bxb3 {[%clk 0:01:20.7]} 21. cxb3
{[%clk 0:01:30.9]} 21... Rad8 {[%clk 0:01:19.3]} 22. Qc2 {[%clk 0:01:21.5]}
22... Bd4 {[%clk 0:01:18.9]} 23. Rh1 {[%clk 0:01:12.3]} 23... c5 {[%clk
0:01:12.3]} 24. Nd2 {[%clk 0:01:07.2]} 24... Qc7 {[%clk 0:01:00.8]} 25. Nc4
{[%clk 0:01:05.4]} 25... Qe7 {[%clk 0:01:00.2]} 26. Qd2 {[%clk 0:00:41.4]} 26...
Bc3 {[%clk 0:00:53.3]} 27. Qe3 {[%clk 0:00:39.2]} 27... Bd4 {[%clk 0:00:53]} 28.
Qd2 {[%clk 0:00:37.3]} 28... Bc3 {[%clk 0:00:53.1]} 29. Qc1 {[%clk 0:00:37.9]}
29... Bd4 {[%clk 0:00:51.3]} 30. Rh2 {[%clk 0:00:37.9]} 30... f6 {[%clk
0:00:49.1]} 31. Rdh1 {[%clk 0:00:33.7]} 31... fxg5 {[%clk 0:00:46.9]} 32. Rxh7
{[%clk 0:00:33.1]} 32... Qxh7 {[%clk 0:00:47.8]} 33. Rxh7 {[%clk 0:00:33.8]}
33... Kxh7 {[%clk 0:00:48.4]} 34. Qxg5 {[%clk 0:00:34.5]} 34... Bxf2 {[%clk
0:00:45.1]} 35. Nxe5 {[%clk 0:00:31.8]} 35... Rd6 {[%clk 0:00:29]} 36. Ng4
{[%clk 0:00:16.6]} 36... Bd4 {[%clk 0:00:15.5]} 37. e5 {[%clk 0:00:14.5]} 37...
Bxe5 {[%clk 0:00:09.5]} 38. Nxe5 {[%clk 0:00:15]} 38... Rd1+ {[%clk 0:00:07.6]}
39. Kc2 {[%clk 0:00:14.8]} 39... Rd6 {[%clk 0:00:06.6]} 40. Qh4+ {[%clk
0:00:05.1]} 40... Kg7 {[%clk 0:00:06.8]} 41. Qf4 {[%clk 0:00:04.8]} 41... Rde6
{[%clk 0:00:05.9]} 42. Ng4 {[%clk 0:00:05.3]} 42... Re2+ {[%clk 0:00:05.5]} 43.
Kd3 {[%clk 0:00:05.9]} 43... Re1 {[%clk 0:00:04.1]} 44. Qh6+ {[%clk 0:00:05.1]}
44... Kf7 {[%clk 0:00:03.7]} 45. Qh7+ {[%clk 0:00:05.5]} 45... Ke6 {[%clk
0:00:04]} 46. Qxg6+ {[%clk 0:00:06.2]} 46... Kd7 {[%clk 0:00:04.1]} 47. Nf6+
{[%clk 0:00:06.8]} 47... Kc8 {[%clk 0:00:03.3]} 48. Nxe8 {[%clk 0:00:07.5]} 1-0

[Event "*** Titled Tuesday Blitz"]
[Site "Chess.com"]
[Date "2021.04.27"]
[Round "10"]
[White "TST2014"]
[Black "lamomiablanca"]
[Result "0-1"]
[WhiteElo "2660"]
[BlackElo "2455"]
[TimeControl "180+1"]
[EndTime "11:54:23 PDT"]
[Termination "lamomiablanca won on time"]

1. d4 {[%clk 0:03:00.9]} 1... Nf6 {[%clk 0:02:59.2]} 2. c4 {[%clk 0:03:00.9]}
2... b6 {[%clk 0:02:59.1]} 3. Nc3 {[%clk 0:02:59.4]} 3... Bb7 {[%clk 0:02:59]}
4. Qc2 {[%clk 0:02:59]} 4... d5 {[%clk 0:02:56.1]} 5. cxd5 {[%clk 0:02:58.1]}
5... Nxd5 {[%clk 0:02:55.8]} 6. Nf3 {[%clk 0:02:57.3]} 6... e6 {[%clk
0:02:54.4]} 7. e4 {[%clk 0:02:56.6]} 7... Nxc3 {[%clk 0:02:54.1]} 8. bxc3 {[%clk
0:02:56.8]} 8... Be7 {[%clk 0:02:54.3]} 9. Bb5+ {[%clk 0:02:55.5]} 9... c6
{[%clk 0:02:54]} 10. Bd3 {[%clk 0:02:55.2]} 10... O-O {[%clk 0:02:53.8]} 11. O-O
{[%clk 0:02:49.6]} 11... c5 {[%clk 0:02:54]} 12. Bf4 {[%clk 0:02:43.6]} 12...
cxd4 {[%clk 0:02:53.2]} 13. cxd4 {[%clk 0:02:43.6]} 13... Nc6 {[%clk 0:02:53.2]}
14. Qb2 {[%clk 0:02:26.9]} 14... Rc8 {[%clk 0:02:32.3]} 15. Rfd1 {[%clk
0:02:26.3]} 15... Nb4 {[%clk 0:02:12.9]} 16. Bb1 {[%clk 0:02:24.1]} 16... Nc6
{[%clk 0:02:08.9]} 17. a3 {[%clk 0:02:06.7]} 17... Na5 {[%clk 0:02:07.2]} 18.
Qe2 {[%clk 0:02:03.9]} 18... Qd7 {[%clk 0:01:54.4]} 19. d5 {[%clk 0:02:03.1]}
19... exd5 {[%clk 0:01:48]} 20. exd5 {[%clk 0:02:00.3]} 20... Bf6 {[%clk
0:01:45.3]} 21. Ra2 {[%clk 0:01:55.4]} 21... Rfe8 {[%clk 0:01:40.9]} 22. Qd3
{[%clk 0:01:53]} 22... g6 {[%clk 0:01:40.4]} 23. h3 {[%clk 0:01:40.6]} 23... Qa4
{[%clk 0:01:28]} 24. Bg3 {[%clk 0:01:32.9]} 24... Ba6 {[%clk 0:01:19.6]} 25. Qd2
{[%clk 0:01:08.9]} 25... Re2 {[%clk 0:01:12.6]} 26. Qxe2 {[%clk 0:00:42.2]}
26... Bxe2 {[%clk 0:01:10.6]} 27. Re1 {[%clk 0:00:36.9]} 27... Bxf3 {[%clk
0:00:45.6]} 28. gxf3 {[%clk 0:00:36.4]} 28... Qd4 {[%clk 0:00:37.5]} 29. d6
{[%clk 0:00:32.9]} 29... Nc4 {[%clk 0:00:34.2]} 30. Rc2 {[%clk 0:00:20.5]} 30...
Rd8 {[%clk 0:00:20.9]} 31. Ba2 {[%clk 0:00:13.8]} 31... Nxd6 {[%clk 0:00:18.8]}
32. Rc7 {[%clk 0:00:13.7]} 32... Rf8 {[%clk 0:00:14.5]} 33. Rd7 {[%clk
0:00:12.6]} 33... Qc3 {[%clk 0:00:12.1]} 34. Re3 {[%clk 0:00:07.8]} 34... Qa1+
{[%clk 0:00:11.4]} 35. Kg2 {[%clk 0:00:07.2]} 35... Nf5 {[%clk 0:00:11.4]} 36.
Re2 {[%clk 0:00:07.3]} 36... Nxg3 {[%clk 0:00:11.2]} 37. fxg3 {[%clk 0:00:07]}
37... Qc1 {[%clk 0:00:08.8]} 38. Bb3 {[%clk 0:00:05.4]} 38... Qc3 {[%clk
0:00:07.8]} 39. Bd5 {[%clk 0:00:03.3]} 39... Kg7 {[%clk 0:00:06.9]} 40. a4
{[%clk 0:00:03.1]} 40... a6 {[%clk 0:00:06.4]} 41. h4 {[%clk 0:00:03.5]} 41...
b5 {[%clk 0:00:06.6]} 42. axb5 {[%clk 0:00:03.5]} 42... axb5 {[%clk 0:00:07.5]}
43. Ra7 {[%clk 0:00:03.7]} 43... b4 {[%clk 0:00:07.3]} 44. Rb7 {[%clk
0:00:04.3]} 44... h5 {[%clk 0:00:06.5]} 45. Re4 {[%clk 0:00:02.6]} 45... Qd2+
{[%clk 0:00:05.9]} 46. Kh3 {[%clk 0:00:03.1]} 46... Qxd5 {[%clk 0:00:06]} 47.
Rexb4 {[%clk 0:00:03.3]} 47... Qf5+ {[%clk 0:00:05.5]} 48. Kg2 {[%clk
0:00:02.8]} 48... Rd8 {[%clk 0:00:05.2]} 0-1

[Event "*** Titled Tuesday Blitz"]
[Site "Chess.com"]
[Date "2021.04.27"]
[Round "10"]
[White "Lyschko"]
[Black "JoachimMouhamad"]
[Result "0-1"]
[WhiteElo "2298"]
[BlackElo "2468"]
[TimeControl "180+1"]
[EndTime "11:54:25 PDT"]
[Termination "JoachimMouhamad won by resignation"]

1. c4 {[%clk 0:03:00.9]} 1... e5 {[%clk 0:02:56.9]} 2. Nc3 {[%clk 0:03:00]} 2...
Nf6 {[%clk 0:02:56.8]} 3. Nf3 {[%clk 0:02:59.2]} 3... Nc6 {[%clk 0:02:56.2]} 4.
e3 {[%clk 0:02:59.2]} 4... Bb4 {[%clk 0:02:55.6]} 5. Qc2 {[%clk 0:02:59]} 5...
Bxc3 {[%clk 0:02:42.5]} 6. bxc3 {[%clk 0:02:58]} 6... e4 {[%clk 0:02:34.6]} 7.
Ng5 {[%clk 0:02:47.1]} 7... Qe7 {[%clk 0:02:30.9]} 8. f3 {[%clk 0:02:46.7]} 8...
exf3 {[%clk 0:02:26.2]} 9. Nxf3 {[%clk 0:02:46.7]} 9... O-O {[%clk 0:02:21.7]}
10. Be2 {[%clk 0:02:46.5]} 10... d6 {[%clk 0:02:12.6]} 11. O-O {[%clk
0:02:45.7]} 11... Ne5 {[%clk 0:02:07.9]} 12. h3 {[%clk 0:02:15.1]} 12... Re8
{[%clk 0:01:56.8]} 13. d4 {[%clk 0:02:13.6]} 13... Nxf3+ {[%clk 0:01:52.8]} 14.
Bxf3 {[%clk 0:02:13.4]} 14... Ne4 {[%clk 0:01:40]} 15. Bxe4 {[%clk 0:02:12.1]}
15... Qxe4 {[%clk 0:01:39.4]} 16. Qxe4 {[%clk 0:02:12.1]} 16... Rxe4 {[%clk
0:01:40.3]} 17. Rf4 {[%clk 0:02:02.3]} 17... Rxf4 {[%clk 0:01:19.1]} 18. exf4
{[%clk 0:02:02.1]} 18... Be6 {[%clk 0:01:19.8]} 19. d5 {[%clk 0:01:47]} 19...
Bf5 {[%clk 0:01:19.3]} 20. Be3 {[%clk 0:01:46.7]} 20... b6 {[%clk 0:01:14.4]}
21. Rd1 {[%clk 0:01:42.9]} 21... Re8 {[%clk 0:01:10.1]} 22. Kf2 {[%clk
0:01:42.7]} 22... h5 {[%clk 0:01:02]} 23. Rd4 {[%clk 0:01:27.3]} 23... f6 {[%clk
0:00:53.6]} 24. Kf3 {[%clk 0:01:26.1]} 24... h4 {[%clk 0:00:34.4]} 25. Bf2
{[%clk 0:01:21.4]} 25... g5 {[%clk 0:00:33.6]} 26. Be3 {[%clk 0:01:19.2]} 26...
Kf7 {[%clk 0:00:18]} 27. fxg5 {[%clk 0:01:18.7]} 27... Kg6 {[%clk 0:00:18.7]}
28. gxf6 {[%clk 0:01:17.5]} 28... Kxf6 {[%clk 0:00:19.6]} 29. Rxh4 {[%clk
0:01:15.5]} 29... Bd3 {[%clk 0:00:17.8]} 30. g4 {[%clk 0:01:09.7]} 30... Kg6
{[%clk 0:00:15.3]} 31. Rh6+ {[%clk 0:01:08.6]} 31... Kg7 {[%clk 0:00:15.8]} 32.
Rh5 {[%clk 0:01:05]} 32... Bb1 {[%clk 0:00:15.2]} 33. Bd4+ {[%clk 0:01:04.5]}
33... Kg6 {[%clk 0:00:13.8]} 34. Rh8 {[%clk 0:00:58.2]} 34... Rxh8 {[%clk
0:00:12.4]} 35. Bxh8 {[%clk 0:00:57.9]} 35... Bxa2 {[%clk 0:00:13.3]} 36. Kf4
{[%clk 0:00:54.2]} 36... Bxc4 {[%clk 0:00:13.2]} 37. h4 {[%clk 0:00:54.4]} 37...
Bxd5 {[%clk 0:00:11.6]} 38. h5+ {[%clk 0:00:54]} 38... Kh7 {[%clk 0:00:12.1]}
39. Bf6 {[%clk 0:00:52.8]} 39... a5 {[%clk 0:00:10.9]} 40. Bd8 {[%clk 0:00:52]}
40... a4 {[%clk 0:00:11.2]} 41. g5 {[%clk 0:00:46.1]} 41... a3 {[%clk
0:00:10.5]} 42. c4 {[%clk 0:00:45.2]} 42... Bxc4 {[%clk 0:00:08.9]} 43. Bf6
{[%clk 0:00:40.6]} 43... b5 {[%clk 0:00:05.6]} 44. Kg4 {[%clk 0:00:33.9]} 44...
b4 {[%clk 0:00:05.2]} 45. g6+ {[%clk 0:00:31.8]} 45... Kh6 {[%clk 0:00:04.5]}
46. Kh4 {[%clk 0:00:32]} 46... Bd3 {[%clk 0:00:02.2]} 47. Bg5+ {[%clk
0:00:31.8]} 47... Kg7 {[%clk 0:00:02.5]} 48. Bd2 {[%clk 0:00:30.2]} 48... Bxg6
{[%clk 0:00:02.9]} 49. hxg6 {[%clk 0:00:29.4]} 49... Kxg6 {[%clk 0:00:03.8]} 50.
Bxb4 {[%clk 0:00:29.4]} 50... a2 {[%clk 0:00:04.4]} 51. Bc3 {[%clk 0:00:29.6]}
51... Kf5 {[%clk 0:00:05.3]} 52. Kg3 {[%clk 0:00:29.6]} 52... Ke4 {[%clk
0:00:06.2]} 53. Kf2 {[%clk 0:00:29.6]} 53... Kd3 {[%clk 0:00:07.1]} 54. Bf6
{[%clk 0:00:26]} 54... Kc2 {[%clk 0:00:08]} 55. Ke2 {[%clk 0:00:25.7]} 55... Kb1
{[%clk 0:00:08.2]} 56. Kd3 {[%clk 0:00:25.4]} 56... a1=Q {[%clk 0:00:08.2]} 57.
Bxa1 {[%clk 0:00:25.2]} 57... Kxa1 {[%clk 0:00:09.1]} 58. Kd4 {[%clk 0:00:25.5]}
58... Kb2 {[%clk 0:00:09.6]} 59. Kd5 {[%clk 0:00:25.8]} 59... Kc3 {[%clk
0:00:10.2]} 60. Kc6 {[%clk 0:00:25.7]} 60... Kc4 {[%clk 0:00:10.6]} 61. Kxc7
{[%clk 0:00:24.9]} 61... d5 {[%clk 0:00:11.3]} 62. Kd7 {[%clk 0:00:24.9]} 62...
d4 {[%clk 0:00:12.2]} 0-1

[Event "*** Titled Tuesday Blitz"]
[Site "Chess.com"]
[Date "2021.04.27"]
[Round "10"]
[White "Zhigalko_Sergei"]
[Black "Arystanner"]
[Result "1-0"]
[WhiteElo "2946"]
[BlackElo "2832"]
[TimeControl "180+1"]
[EndTime "11:54:31 PDT"]
[Termination "Zhigalko_Sergei won by resignation"]

1. e4 {[%clk 0:03:00.9]} 1... e5 {[%clk 0:02:59.7]} 2. Nf3 {[%clk 0:03:00.6]}
2... Nc6 {[%clk 0:02:59.6]} 3. Bc4 {[%clk 0:03:01.2]} 3... Bc5 {[%clk
0:02:58.6]} 4. b4 {[%clk 0:03:01]} 4... Bxb4 {[%clk 0:02:58.6]} 5. c3 {[%clk
0:03:01.4]} 5... Be7 {[%clk 0:02:58.8]} 6. d4 {[%clk 0:03:01.4]} 6... Na5 {[%clk
0:02:59.2]} 7. Bd3 {[%clk 0:03:02]} 7... d6 {[%clk 0:02:58.5]} 8. dxe5 {[%clk
0:03:02.6]} 8... dxe5 {[%clk 0:02:59.4]} 9. Nxe5 {[%clk 0:03:03.5]} 9... Nf6
{[%clk 0:02:58.9]} 10. O-O {[%clk 0:03:03.8]} 10... O-O {[%clk 0:02:59]} 11. Qc2
{[%clk 0:03:04.5]} 11... Bd6 {[%clk 0:02:45.3]} 12. Nf3 {[%clk 0:03:01.7]} 12...
Nc6 {[%clk 0:02:45.3]} 13. Bg5 {[%clk 0:02:55.8]} 13... h6 {[%clk 0:02:42.6]}
14. Bh4 {[%clk 0:02:54.7]} 14... Bg4 {[%clk 0:02:39.8]} 15. Nbd2 {[%clk
0:02:54.2]} 15... Qe7 {[%clk 0:02:22.7]} 16. Rae1 {[%clk 0:02:41.3]} 16... Rfe8
{[%clk 0:02:13.6]} 17. e5 {[%clk 0:02:20.8]} 17... Nxe5 {[%clk 0:01:53.5]} 18.
Nxe5 {[%clk 0:02:19.4]} 18... Bxe5 {[%clk 0:01:53.7]} 19. f4 {[%clk 0:02:20.2]}
19... Qc5+ {[%clk 0:00:45.8]} 20. Bf2 {[%clk 0:02:19.2]} 20... Qxc3 {[%clk
0:00:40.6]} 21. fxe5 {[%clk 0:02:17]} 21... Qxc2 {[%clk 0:00:40.9]} 22. Bxc2
{[%clk 0:02:17.9]} 22... Nd5 {[%clk 0:00:38.1]} 23. Bb3 {[%clk 0:02:06]} 23...
Nc3 {[%clk 0:00:27]} 24. Bxf7+ {[%clk 0:01:57.3]} 24... Kxf7 {[%clk 0:00:18.9]}
25. Bd4+ {[%clk 0:01:57.6]} 25... Ke6 {[%clk 0:00:19.8]} 26. Bxc3 {[%clk
0:01:57.9]} 26... Rad8 {[%clk 0:00:20.7]} 27. Nb3 {[%clk 0:01:56.3]} 27... b6
{[%clk 0:00:19.6]} 28. Nd4+ {[%clk 0:01:55.5]} 28... Kd5 {[%clk 0:00:20.3]} 29.
Rf7 {[%clk 0:00:21.6]} 29... c5 {[%clk 0:00:19.1]} 30. Nf3 {[%clk 0:00:10.2]}
30... Kc4 {[%clk 0:00:16.6]} 31. Ba1 {[%clk 0:00:10.1]} 31... a5 {[%clk
0:00:14.6]} 32. Rxg7 {[%clk 0:00:10.2]} 32... Bf5 {[%clk 0:00:13.5]} 33. Rf7
{[%clk 0:00:09.3]} 33... Be6 {[%clk 0:00:13.4]} 34. Rf6 {[%clk 0:00:09.8]} 34...
b5 {[%clk 0:00:13.6]} 35. Rxh6 {[%clk 0:00:09.5]} 35... b4 {[%clk 0:00:14.1]}
36. Ng5 {[%clk 0:00:09.9]} 36... Bd5 {[%clk 0:00:12.9]} 37. e6 {[%clk
0:00:10.1]} 37... a4 {[%clk 0:00:12.7]} 38. Rh4+ {[%clk 0:00:09.2]} 38... Kb5
{[%clk 0:00:12.8]} 39. Re2 {[%clk 0:00:07.2]} 39... a3 {[%clk 0:00:12.7]} 40. e7
{[%clk 0:00:06.2]} 40... Rd7 {[%clk 0:00:12.6]} 41. Bf6 {[%clk 0:00:06.7]} 41...
Bc4 {[%clk 0:00:12.2]} 42. Rxc4 {[%clk 0:00:06.5]} 42... Kxc4 {[%clk 0:00:11.8]}
43. h4 {[%clk 0:00:06.8]} 43... Rd6 {[%clk 0:00:10.4]} 44. Re4+ {[%clk
0:00:05.1]} 44... Kd3 {[%clk 0:00:09]} 45. Re6 {[%clk 0:00:06]} 45... Rxe6
{[%clk 0:00:07.1]} 46. Nxe6 {[%clk 0:00:06.3]} 46... b3 {[%clk 0:00:08]} 47.
Nxc5+ {[%clk 0:00:06.1]} 47... Kc2 {[%clk 0:00:07.4]} 48. Nxb3 {[%clk 0:00:07]}
48... Kb1 {[%clk 0:00:08]} 49. Nd4 {[%clk 0:00:03.6]} 49... Kxa2 {[%clk
0:00:08.4]} 50. Nb5 {[%clk 0:00:04.3]} 50... Kb3 {[%clk 0:00:08.6]} 51. Nd6
{[%clk 0:00:04.9]} 51... Rxe7 {[%clk 0:00:04.1]} 52. Bxe7 {[%clk 0:00:05.8]}
52... a2 {[%clk 0:00:03.7]} 53. Bf6 {[%clk 0:00:06.7]} 53... a1=Q+ {[%clk
0:00:04.6]} 54. Bxa1 {[%clk 0:00:06.7]} 1-0

[Event "*** Titled Tuesday Blitz"]
[Site "Chess.com"]
[Date "2021.04.27"]
[Round "10"]
[White "Matols"]
[Black "Aslanov_Umid"]
[Result "1-0"]
[WhiteElo "2276"]
[BlackElo "2420"]
[TimeControl "180+1"]
[EndTime "11:54:33 PDT"]
[Termination "Matols won by resignation"]

1. d4 {[%clk 0:03:00.9]} 1... d5 {[%clk 0:03:00]} 2. c4 {[%clk 0:03:00.7]} 2...
e6 {[%clk 0:03:00.6]} 3. Nf3 {[%clk 0:03:00.2]} 3... c6 {[%clk 0:03:00.8]} 4. e3
{[%clk 0:02:59]} 4... Nf6 {[%clk 0:03:00.6]} 5. b3 {[%clk 0:02:56.7]} 5... Nbd7
{[%clk 0:03:00.4]} 6. Bb2 {[%clk 0:02:56.2]} 6... b6 {[%clk 0:03:00.5]} 7. Bd3
{[%clk 0:02:55.6]} 7... Bd6 {[%clk 0:03:00.8]} 8. O-O {[%clk 0:02:55.1]} 8...
Bb7 {[%clk 0:03:00.9]} 9. Nc3 {[%clk 0:02:52.5]} 9... Qe7 {[%clk 0:03:00.4]} 10.
Re1 {[%clk 0:02:46.4]} 10... O-O {[%clk 0:03:00.3]} 11. e4 {[%clk 0:02:44.6]}
11... dxc4 {[%clk 0:03:00.5]} 12. bxc4 {[%clk 0:02:42.4]} 12... e5 {[%clk
0:03:00.4]} 13. d5 {[%clk 0:02:39.5]} 13... Rac8 {[%clk 0:02:58.4]} 14. Rc1
{[%clk 0:02:35.1]} 14... h6 {[%clk 0:02:56.5]} 15. Nh4 {[%clk 0:02:31.5]} 15...
g6 {[%clk 0:02:55.5]} 16. g3 {[%clk 0:02:15.2]} 16... Kg7 {[%clk 0:02:54.2]} 17.
Ng2 {[%clk 0:02:05.8]} 17... cxd5 {[%clk 0:02:48.7]} 18. cxd5 {[%clk 0:02:02.5]}
18... Nc5 {[%clk 0:02:46.3]} 19. Nb5 {[%clk 0:01:51.1]} 19... Nxd3 {[%clk
0:02:42.4]} 20. Qxd3 {[%clk 0:01:50.1]} 20... Ba6 {[%clk 0:02:38.1]} 21. a4
{[%clk 0:01:47.9]} 21... Bc5 {[%clk 0:02:35]} 22. Ne3 {[%clk 0:01:44.1]} 22...
Rfe8 {[%clk 0:02:27.2]} 23. Nc4 {[%clk 0:01:31.9]} 23... Ng4 {[%clk 0:02:27.1]}
24. Re2 {[%clk 0:01:23.5]} 24... Qf6 {[%clk 0:02:25.9]} 25. Rcc2 {[%clk
0:01:14.1]} 25... Bxb5 {[%clk 0:02:25.2]} 26. axb5 {[%clk 0:01:13]} 26... Qg5
{[%clk 0:02:16.5]} 27. h3 {[%clk 0:01:08.6]} 27... Nf6 {[%clk 0:02:06.8]} 28.
Kg2 {[%clk 0:01:06.2]} 28... Nh5 {[%clk 0:02:03.1]} 29. Kh2 {[%clk 0:00:50.6]}
29... Kh7 {[%clk 0:01:53.2]} 30. Qf3 {[%clk 0:00:42.5]} 30... Nf6 {[%clk
0:01:48.2]} 31. h4 {[%clk 0:00:30.8]} 31... Ng4+ {[%clk 0:00:39]} 32. Kg2 {[%clk
0:00:30.3]} 32... Qf6 {[%clk 0:00:35]} 33. Qxg4 {[%clk 0:00:29.6]} 33... Bd4
{[%clk 0:00:33]} 34. Bxd4 {[%clk 0:00:28.2]} 34... exd4 {[%clk 0:00:33.9]} 35.
e5 {[%clk 0:00:27.8]} 35... Qe7 {[%clk 0:00:30.1]} 36. Qxd4 {[%clk 0:00:27.7]}
36... Rc5 {[%clk 0:00:30.5]} 37. e6 {[%clk 0:00:25.8]} 37... Qb7 {[%clk
0:00:27.3]} 38. Nd6 {[%clk 0:00:20.2]} 38... Rxd5 {[%clk 0:00:24.4]} 39. Nxb7
{[%clk 0:00:18]} 39... Rxd4 {[%clk 0:00:24.7]} 40. exf7 {[%clk 0:00:18.2]} 40...
Rf8 {[%clk 0:00:24.4]} 41. Re7 {[%clk 0:00:17]} 41... Kg7 {[%clk 0:00:24.6]} 42.
Rcc7 {[%clk 0:00:16.2]} 42... Rd5 {[%clk 0:00:21.5]} 43. Kf3 {[%clk 0:00:14.2]}
43... Rxb5 {[%clk 0:00:20.3]} 44. Nd6 {[%clk 0:00:13.6]} 44... Rd5 {[%clk
0:00:20.1]} 45. Ne8+ {[%clk 0:00:13.4]} 45... Kh8 {[%clk 0:00:20.7]} 46. Ke4
{[%clk 0:00:11.4]} 46... Rd2 {[%clk 0:00:20.3]} 47. f4 {[%clk 0:00:10.9]} 47...
a5 {[%clk 0:00:20.5]} 48. Rb7 {[%clk 0:00:10.5]} 48... a4 {[%clk 0:00:20.6]} 49.
Nf6 {[%clk 0:00:10.5]} 49... Rd6 {[%clk 0:00:19.3]} 50. Nd7 {[%clk 0:00:10.2]}
50... Rxd7 {[%clk 0:00:17.8]} 51. Rexd7 {[%clk 0:00:10.2]} 51... a3 {[%clk
0:00:18.7]} 52. Ra7 {[%clk 0:00:09.4]} 52... a2 {[%clk 0:00:16.3]} 53. Rxa2
{[%clk 0:00:09.1]} 53... Kg7 {[%clk 0:00:17.2]} 54. Raa7 {[%clk 0:00:09]} 54...
b5 {[%clk 0:00:17.7]} 55. Re7 {[%clk 0:00:08.8]} 55... b4 {[%clk 0:00:17.9]} 56.
Re8 {[%clk 0:00:08.8]} 56... Rxf7 {[%clk 0:00:18.3]} 57. Rxf7+ {[%clk
0:00:08.1]} 57... Kxf7 {[%clk 0:00:19.2]} 58. Rb8 {[%clk 0:00:08.6]} 58... b3
{[%clk 0:00:20.1]} 59. Rxb3 {[%clk 0:00:08.5]} 59... g5 {[%clk 0:00:20.9]} 1-0